fUSD/lending_fUSD_20241223
["ID","MTS","AMOUNT","RATE_DAILY","PERIOD"]
[346391395,1734935448533,-1390.74,0.00019452,2]
[346391396,1734935448542,-500.0,0.00019452,2]
[346391397,1734935448555,-2174.84,0.00019452,2]
[346391398,1734935448564,-500.0,0.00019452,2]
[346391399,1734935448573,-4298.7,0.00019452,2]
[346391400,1734935448583,-500.0,0.00019452,2]
[346391401,1734935448593,-1036.54,0.00019452,2]
[346391402,1734935448603,-215.67939264,0.00019452,2]
[346391403,1734935448612,-518.25,0.00019452,2]
[346391404,1734935448621,-500.0,0.00019452,2]
[346391405,1734935448631,-500.0,0.00019452,2]
[346391406,1734935448640,-1426.01,0.00019452,2]
[346391407,1734935448650,-7912.05,0.00019452,2]
[346391408,1734935448659,-1164.66,0.00019452,2]
[346391409,1734935448668,-500.0,0.00019452,2]
[346391410,1734935448677,-2751.97,0.00019452,2]
[346391411,1734935448686,-500.0,0.00019452,2]
[346391412,1734935448695,-1449.49,0.00019452,2]
[346391413,1734935448704,-1407.71,0.00019452,2]
[346391414,1734935448713,-624.43480108,0.00019452,2]
[346391415,1734935448722,-500.0,0.00019452,2]
[346391416,1734935448732,-1945.88,0.00019452,2]
[346391417,1734935448741,-833.71,0.00019452,2]
[346391418,1734935448751,-613.48,0.00019452,2]
[346391419,1734935448760,-2470.0,0.00019452,2]
[346391420,1734935448770,-500.0,0.00019452,2]
[346391421,1734935448779,-370.88876379,0.00019452,2]
[346391422,1734935448788,-2436.65,0.00019452,2]
[346391423,1734935448798,-500.0,0.00019452,2]
[346391424,1734935448808,-2846.41,0.00019452,2]
[346391425,1734935448817,-500.0,0.00019452,2]
[346391426,1734935448826,-1171.61,0.00019452,2]
[346391427,1734935448835,-1008.63,0.00019452,2]
[346391428,1734935448845,-1028.27,0.00019452,2]
[346391429,1734935448854,-5226.58,0.00019452,2]
[346391430,1734935448864,-1641.41,0.00019452,2]
[346391431,1734935448873,-821.66,0.00019452,2]
[346391432,1734935448882,-500.0,0.00019452,2]
[346391433,1734935448892,-500.0,0.00019452,2]
[346391434,1734935448901,-603.09,0.00019452,2]
[346391435,1734935448910,-2169.08,0.00019452,2]
[346391436,1734935448919,-504.93777018,0.00019452,2]
[346391437,1734935448929,-3737.79,0.00019452,2]
[346391438,1734935448938,-500.0,0.00019452,2]
[346391439,1734935448948,-500.0,0.00019452,2]
[346391440,1734935448957,-2023.26,0.00019452,2]
[346391441,1734935448966,-2114.27,0.00019452,2]
[346391442,1734935448975,-2881.71,0.00019452,2]
[346391443,1734935448985,-1012.11,0.00019452,2]
[346391444,1734935448994,-1767.64,0.00019452,2]
[346391445,1734935449006,-3548.69,0.00019452,2]
[346391446,1734935449016,-1400.33,0.00019452,2]
[346391447,1734935449027,-500.0,0.00019452,2]
[346391448,1734935449037,-6730.92,0.00019452,2]
[346391449,1734935449047,-597.1,0.00019452,2]
[346391450,1734935449056,-853.63,0.00019452,2]
[346391451,1734935449066,-506.96292418,0.00019452,2]
[346391452,1734935449076,-500.0,0.00019452,2]
[346391453,1734935449086,-3149.33,0.00019452,2]
[346391454,1734935449250,-539.92,0.00019452,2]
[346391455,1734935449260,-500.0,0.00019452,2]
[346391456,1734935449270,-1647.33,0.00019452,2]
[346391457,1734935449279,-500.0,0.00019452,2]
[346391458,1734935449288,-2411.79,0.00019452,2]
[346391459,1734935449298,-500.0,0.00019452,2]
[346391460,1734935449308,-3621.02,0.00019452,2]
[346391461,1734935449318,-1361.07,0.00019452,2]
[346391462,1734935449327,-750.97,0.00019452,2]
[346391463,1734935449336,-642.48,0.00019452,2]
[346391464,1734935449345,-5230.48,0.00019452,2]
[346391465,1734935449354,-502.86,0.00019452,2]
[346391466,1734935449364,-500.0,0.00019452,2]
[346391467,1734935449373,-7327.42,0.00019452,2]
[346391468,1734935449383,-755.58,0.00019452,2]
[346391469,1734935449392,-2959.28,0.00019452,2]
[346391470,1734935449402,-500.0,0.00019452,2]
[346391471,1734935449411,-750.25,0.00019452,2]
[346391472,1734935449420,-1648.11,0.00019452,2]
[346391473,1734935449429,-500.0,0.00019452,2]
[346391474,1734935449438,-500.0,0.00019452,2]
[346391475,1734935449447,-773.64,0.00019452,2]
[346391476,1734935449456,-409.05531234,0.00019452,2]
[346391477,1734935449466,-552.16,0.00019452,2]
[346391478,1734935449475,-1659.43,0.00019452,2]
[346391479,1734935449484,-500.0,0.00019452,2]
[346391480,1734935449493,-500.0,0.00019452,2]
[346391481,1734935449503,-956.6,0.00019452,2]
[346391482,1734935449512,-500.0,0.00019452,2]
[346391483,1734935449521,-539.91717862,0.00019452,2]
[346391484,1734935449530,-671.94,0.00019452,2]
[346391485,1734935449540,-500.0,0.00019452,2]
[346391486,1734935449555,-500.0,0.00019452,2]
[346391487,1734935449565,-1018.89,0.00019452,2]
[346391488,1734935449574,-500.0,0.00019452,2]
[346391489,1734935449583,-1384.22,0.00019452,2]
[346391490,1734935449594,-500.0,0.00019452,2]
[346391491,1734935449603,-500.0,0.00019452,2]
[346391492,1734935449613,-500.0,0.00019452,2]
[346391493,1734935449622,-500.0,0.00019452,2]
[346391494,1734935449633,-500.0,0.00019452,2]
[346391495,1734935449643,-606.65,0.00019452,2]
[346391496,1734935449652,-500.0,0.00019452,2]
[346391497,1734935449662,-500.0,0.00019452,2]
[346391498,1734935449671,-500.0,0.00019452,2]
[346391499,1734935449681,-500.0,0.00019452,2]
[346391500,1734935449690,-784.24,0.00019452,2]
[346391501,1734935449700,-500.0,0.00019452,2]
[346391502,1734935449709,-663.59,0.00019452,2]
[346391503,1734935449718,-758.25,0.00019452,2]
[346391504,1734935449728,-1305.24,0.00019452,2]
[346391505,1734935449737,-500.0,0.00019452,2]
[346391506,1734935449747,-500.0,0.00019452,2]
[346391507,1734935449756,-2901.49058151,0.00019535,2]
[346391508,1734935449765,-151.75612178,0.00019589,2]
[346391509,1734935449774,-1133.18577346,0.000196,2]
[346391510,1734935449784,-1009.67406014,0.000196,2]
[346391511,1734935449793,-1523.0,0.00019626,2]
[346391512,1734935449802,-2901.49058151,0.00019626,2]
[346391513,1734935449811,-626.6,0.00019665,2]
[346391514,1734935449821,-2901.49058151,0.00019717,2]
[346391515,1734935449830,-500.0,0.00019725,2]
[346391516,1734935449839,-500.0,0.00019725,2]
[346391517,1734935449847,-999.64,0.00019725,2]
[346391518,1734935449856,-875.84,0.00019725,2]
[346391519,1734935449865,-2879.09,0.00019725,2]
[346391520,1734935449874,-2169.28,0.00019725,2]
[346391521,1734935449883,-500.0,0.00019725,2]
[346391522,1734935449892,-3482.2,0.00019725,2]
[346391523,1734935449901,-626.6,0.00019725,2]
[346391524,1734935449911,-500.0,0.00019726,2]
[346391525,1734935449919,-500.0,0.00019726,2]
[346391526,1734935449928,-500.0,0.00019726,2]
[346391527,1734935449937,-500.0,0.00019726,2]
[346391528,1734935449946,-500.0,0.00019726,2]
[346391529,1734935449955,-331.63382931,0.00019726,2]
[346391530,1734935449964,-500.0,0.00019726,2]
[346391531,1734935449973,-500.0,0.00019726,2]
[346391532,1734935449983,-500.0,0.00019726,2]
[346391533,1734935449991,-500.0,0.00019726,2]
[346391534,1734935450002,-366.9910598,0.00019726,2]
[346391535,1734935450011,-500.0,0.00019726,2]
[346391536,1734935450020,-513.98,0.00019726,2]
[346391537,1734935450029,-500.0,0.00019726,2]
[346391538,1734935450038,-500.0,0.00019726,2]
[346391539,1734935450047,-500.0,0.00019726,2]
[346391540,1734935450056,-500.0,0.00019726,2]
[346391541,1734935450065,-1577.848044,0.00019726,2]
[346391542,1734935450074,-1436.985312,0.00019726,2]
[346391543,1734935450083,-189.46,0.00019726,2]
[346391544,1734935450092,-601.91,0.00019726,2]
[346391545,1734935450101,-500.0,0.00019726,2]
[346391546,1734935450111,-500.0,0.00019726,2]
[346391547,1734935450120,-221.06,0.00019726,2]
[346391548,1734935450129,-207.5,0.00019726,2]
[346391549,1734935450138,-280.5933352,0.00019726,2]
[346391550,1734935450147,-500.0,0.00019726,2]
[346391551,1734935450156,-500.0,0.00019726,2]
[346391552,1734935450165,-500.0,0.00019726,2]
[346391553,1734935450174,-500.0,0.00019726,2]
[346391554,1734935450183,-223.31932752,0.00019726,2]
[346391555,1734935450192,-500.0,0.00019726,2]
[346391556,1734935450201,-622.29,0.00019726,2]
[346391557,1734935450210,-722.17,0.00019726,2]
[346391558,1734935450219,-500.0,0.00019726,2]
[346391559,1734935450228,-500.0,0.00019726,2]
[346391560,1734935450237,-552.85,0.00019726,2]
[346391561,1734935450246,-500.0,0.00019726,2]
[346391562,1734935450256,-500.0,0.00019726,2]
[346391563,1734935450265,-500.0,0.00019726,2]
[346391564,1734935450275,-500.0,0.00019726,2]
[346391565,1734935450283,-500.0,0.00019726,2]
[346391566,1734935450292,-500.0,0.00019726,2]
[346391567,1734935450302,-500.0,0.00019726,2]
[346391568,1734935450311,-500.0,0.00019726,2]
[346391569,1734935450320,-623.93443742,0.00019726,2]
[346391570,1734935450330,-500.0,0.00019726,2]
[346391571,1734935450339,-500.0,0.00019726,2]
[346391572,1734935450348,-576.64,0.00019726,2]
[346391573,1734935450358,-500.0,0.00019726,2]
[346391574,1734935450367,-500.0,0.00019726,2]
[346391575,1734935450376,-500.0,0.00019726,2]
[346391576,1734935450386,-509.69,0.00019726,2]
[346391577,1734935450395,-500.0,0.00019726,2]
[346391578,1734935450404,-500.0,0.00019726,2]
[346391579,1734935450413,-785.36,0.00019726,2]
[346391580,1734935450422,-500.0,0.00019726,2]
[346391581,1734935450431,-525.67,0.00019726,2]
[346391582,1734935450440,-664.84,0.00019726,2]
[346391583,1734935450449,-500.0,0.00019726,2]
[346391584,1734935450458,-500.0,0.00019726,2]
[346391585,1734935450467,-609.92,0.00019726,2]
[346391586,1734935450476,-500.0,0.00019726,2]
[346391587,1734935450485,-500.0,0.00019726,2]
[346391588,1734935450495,-537.52,0.00019726,2]
[346391589,1734935450505,-156.18,0.00019726,2]
[346391590,1734935450515,-551.53,0.00019726,2]
[346391591,1734935450524,-645.14,0.00019726,2]
[346391592,1734935450533,-1180.05,0.00019726,2]
[346391593,1734935450542,-500.0,0.00019726,2]
[346391594,1734935450555,-331.01,0.00019726,2]
[346391595,1734935450564,-500.0,0.00019726,2]
[346391596,1734935450573,-246.04584192,0.00019726,2]
[346391597,1734935450582,-278.14,0.00019726,2]
[346391598,1734935450591,-500.0,0.00019726,2]
[346391599,1734935450601,-500.0,0.00019726,2]
[346391600,1734935450610,-286.68401178,0.00019726,2]
[346391601,1734935450619,-500.0,0.00019726,2]
[346391602,1734935450629,-500.0,0.00019726,2]
[346391603,1734935450638,-881.13,0.00019726,2]
[346391604,1734935450647,-832.62,0.00019726,2]
[346391605,1734935450656,-861.36,0.00019726,2]
[346391606,1734935450665,-500.0,0.00019726,2]
[346391607,1734935450674,-500.0,0.00019726,2]
[346391608,1734935450683,-500.0,0.00019726,2]
[346391609,1734935450692,-856.02,0.00019726,2]
[346391610,1734935450701,-559.91,0.00019726,2]
[346391611,1734935450710,-698.24,0.00019726,2]
[346391612,1734935450719,-500.0,0.00019726,2]
[346391613,1734935450729,-500.0,0.00019726,2]
[346391614,1734935450738,-586.22,0.00019726,2]
[346391615,1734935450748,-500.0,0.00019726,2]
[346391616,1734935450757,-500.0,0.00019726,2]
[346391617,1734935450766,-615.77,0.00019726,2]
[346391618,1734935450775,-500.0,0.00019726,2]
[346391619,1734935450784,-500.0,0.00019726,2]
[346391620,1734935450793,-837.51,0.00019726,2]
[346391621,1734935450802,-809.61,0.00019726,2]
[346391622,1734935450811,-500.0,0.00019726,2]
[346391623,1734935450820,-201.45722049,0.00019726,2]
[346391624,1734935450829,-500.0,0.00019726,2]
[346391625,1734935450838,-500.0,0.00019726,2]
[346391626,1734935450847,-500.0,0.00019726,2]
[346391627,1734935450856,-500.0,0.00019726,2]
[346391628,1734935450865,-543.05841626,0.00019726,2]
[346391629,1734935450874,-500.0,0.00019726,2]
[346391630,1734935450883,-501.45,0.00019726,2]
[346391631,1734935450892,-310.95644246,0.00019726,2]
[346391632,1734935450901,-920.72,0.00019726,2]
[346391633,1734935450910,-500.0,0.00019726,2]
[346391634,1734935450919,-500.0,0.00019726,2]
[346391635,1734935450928,-500.0,0.00019726,2]
[346391636,1734935450938,-500.0,0.00019726,2]
[346391637,1734935450947,-500.0,0.00019726,2]
[346391638,1734935450956,-799.19,0.00019726,2]
[346391639,1734935450965,-500.0,0.00019726,2]
[346391640,1734935450974,-669.9,0.00019726,2]
[346391641,1734935450983,-840.24,0.00019726,2]
[346391642,1734935450993,-500.0,0.00019726,2]
[346391643,1734935451002,-197.08,0.00019726,2]
[346391644,1734935451011,-500.0,0.00019726,2]
[346391645,1734935451021,-624.93,0.00019726,2]
[346391646,1734935451030,-711.25,0.00019726,2]
[346391647,1734935451040,-221.64,0.00019726,2]
[346391648,1734935451049,-500.0,0.00019726,2]
[346391649,1734935451058,-1077.26,0.00019726,2]
[346391650,1734935451067,-500.0,0.00019726,2]
[346391651,1734935451076,-560.91,0.00019726,2]
[346391652,1734935451085,-500.0,0.00019726,2]
[346391653,1734935451095,-500.0,0.00019726,2]
[346391654,1734935451104,-500.0,0.00019726,2]
[346391655,1734935451113,-668.55,0.00019726,2]
[346391656,1734935451122,-197.34554943,0.00019726,2]
[346391657,1734935451131,-500.0,0.00019726,2]
[346391658,1734935451140,-500.0,0.00019726,2]
[346391659,1734935451149,-926.14,0.00019726,2]
[346391660,1734935451158,-774.41,0.00019726,2]
[346391661,1734935451167,-512.4,0.00019726,2]
[346391662,1734935451176,-500.0,0.00019726,2]
[346391663,1734935451185,-1147.32,0.00019726,2]
[346391664,1734935451195,-1223.64,0.00019726,2]
[346391665,1734935451204,-550.09,0.00019726,2]
[346391666,1734935451213,-659.31,0.00019726,2]
[346391667,1734935451222,-500.0,0.00019726,2]
[346391668,1734935451231,-1762.37,0.00019726,2]
[346391669,1734935451240,-500.0,0.00019726,2]
[346391670,1734935451249,-500.0,0.00019726,2]
[346391671,1734935451259,-1136.53,0.00019726,2]
[346391672,1734935451267,-1538.55,0.00019726,2]
[346391673,1734935451277,-500.0,0.00019726,2]
[346391674,1734935451286,-1338.24,0.00019726,2]
[346391675,1734935451295,-500.0,0.00019726,2]
[346391676,1734935451303,-797.76,0.00019726,2]
[346391677,1734935451312,-1914.22,0.00019726,2]
[346391678,1734935451321,-1730.27,0.00019726,2]
[346391679,1734935451330,-691.67,0.00019726,2]
[346391680,1734935451339,-1014.4,0.00019726,2]
[346391681,1734935451348,-2171.24,0.00019726,2]
[346391682,1734935451357,-1372.74,0.00019726,2]
[346391683,1734935451367,-693.96,0.00019726,2]
[346391684,1734935451375,-692.53,0.00019726,2]
[346391685,1734935451385,-1493.52,0.00019726,2]
[346391686,1734935451394,-1290.13,0.00019726,2]
[346391687,1734935451403,-500.0,0.00019726,2]
[346391688,1734935451412,-826.62,0.00019726,2]
[346391689,1734935451421,-8616.06,0.00019726,2]
[346391690,1734935451430,-1403.86,0.00019726,2]
[346391691,1734935451439,-2490.51,0.00019726,2]
[346391692,1734935451448,-1479.03,0.00019726,2]
[346391693,1734935451457,-500.0,0.00019726,2]
[346391694,1734935451466,-2459.25,0.00019726,2]
[346391695,1734935451475,-896.21,0.00019726,2]
[346391696,1734935451484,-849.22,0.00019726,2]
[346391697,1734935451493,-12006.65,0.00019726,2]
[346391698,1734935451503,-3580.17,0.00019726,2]
[346391699,1734935451512,-1673.65,0.00019726,2]
[346391700,1734935451522,-910.12,0.00019726,2]
[346391701,1734935451531,-500.0,0.00019726,2]
[346391702,1734935451540,-3753.12,0.00019726,2]
[346391703,1734935451552,-500.0,0.00019726,2]
[346391704,1734935451561,-676.2,0.00019726,2]
[346391705,1734935451570,-25979.47,0.00019726,2]
[346391706,1734935451579,-500.0,0.00019726,2]
[346391707,1734935451591,-899.71,0.00019726,2]
[346391708,1734935451601,-1767.55,0.00019726,2]
[346391709,1734935451610,-500.0,0.00019726,2]
[346391710,1734935451620,-598.23,0.00019726,2]
[346391711,1734935451630,-1387.33,0.00019726,2]
[346391712,1734935451639,-500.0,0.00019726,2]
[346391713,1734935451649,-6393.21,0.00019726,2]
[346391714,1734935451658,-555.3,0.00019726,2]
[346391715,1734935451667,-1219.07,0.00019726,2]
[346391716,1734935451676,-1390.74,0.00019726,2]
[346391717,1734935451685,-500.0,0.00019726,2]
[346391718,1734935451694,-2174.84,0.00019726,2]
[346391719,1734935451703,-500.0,0.00019726,2]
[346391720,1734935451713,-4298.7,0.00019726,2]
[346391721,1734935451723,-1036.54,0.00019726,2]
[346391722,1734935451732,-518.25,0.00019726,2]
[346391723,1734935451740,-500.0,0.00019726,2]
[346391724,1734935451751,-1426.01,0.00019726,2]
[346391725,1734935451760,-7912.05,0.00019726,2]
[346391726,1734935451769,-1164.66,0.00019726,2]
[346391727,1734935451778,-500.0,0.00019726,2]
[346391728,1734935451787,-2751.97,0.00019726,2]
[346391729,1734935451796,-500.0,0.00019726,2]
[346391730,1734935451805,-1449.49,0.00019726,2]
[346391731,1734935451814,-1407.71,0.00019726,2]
[346391732,1734935451823,-1945.88,0.00019726,2]
[346391733,1734935451834,-833.71,0.00019726,2]
[346391734,1734935451843,-500.0,0.00019726,2]
[346391735,1734935451852,-2470.0,0.00019726,2]
[346391736,1734935451861,-513.05300672,0.00019726,2]
[346391737,1734935451871,-2436.65,0.00019726,2]
[346391738,1734935451880,-500.0,0.00019726,2]
[346391739,1734935451889,-2846.41,0.00019726,2]
[346391740,1734935451899,-500.0,0.00019726,2]
[346391741,1734935452047,-1171.61,0.00019726,2]
[346391742,1734935452057,-1008.63,0.00019726,2]
[346391743,1734935452067,-1028.27,0.00019726,2]
[346391744,1734935452076,-5226.58,0.00019726,2]
[346391745,1734935452086,-1641.41,0.00019726,2]
[346391746,1734935452095,-821.66,0.00019726,2]
[346391747,1734935452105,-500.0,0.00019726,2]
[346391748,1734935452114,-500.0,0.00019726,2]
[346391749,1734935452124,-603.09,0.00019726,2]
[346391750,1734935452133,-2169.08,0.00019726,2]
[346391751,1734935452143,-3737.79,0.00019726,2]
[346391752,1734935452152,-500.0,0.00019726,2]
[346391753,1734935452161,-500.0,0.00019726,2]
[346391754,1734935452171,-2023.26,0.00019726,2]
[346391755,1734935452180,-2114.27,0.00019726,2]
[346391756,1734935452189,-2881.71,0.00019726,2]
[346391757,1734935452197,-1012.11,0.00019726,2]
[346391758,1734935452207,-1767.64,0.00019726,2]
[346391759,1734935452216,-3548.69,0.00019726,2]
[346391760,1734935452224,-1400.33,0.00019726,2]
[346391761,1734935452234,-500.0,0.00019726,2]
[346391762,1734935452244,-6730.92,0.00019726,2]
[346391763,1734935452254,-597.1,0.00019726,2]
[346391764,1734935452263,-853.63,0.00019726,2]
[346391765,1734935452272,-500.0,0.00019726,2]
[346391766,1734935452281,-3149.33,0.00019726,2]
[346391767,1734935452291,-539.92,0.00019726,2]
[346391768,1734935452300,-500.0,0.00019726,2]
[346391769,1734935452308,-1647.33,0.00019726,2]
[346391770,1734935452318,-500.0,0.00019726,2]
[346391771,1734935452327,-2411.79,0.00019726,2]
[346391772,1734935452336,-3621.02,0.00019726,2]
[346391773,1734935452345,-1361.07,0.00019726,2]
[346391774,1734935452355,-750.97,0.00019726,2]
[346391775,1734935452365,-642.48,0.00019726,2]
[346391776,1734935452374,-5230.48,0.00019726,2]
[346391777,1734935452383,-502.86,0.00019726,2]
[346391778,1734935452392,-7327.42,0.00019726,2]
[346391779,1734935452401,-755.58,0.00019726,2]
[346391780,1734935452411,-2959.28,0.00019726,2]
[346391781,1734935452419,-500.0,0.00019726,2]
[346391782,1734935452428,-750.25,0.00019726,2]
[346391783,1734935452438,-1648.11,0.00019726,2]
[346391784,1734935452446,-500.0,0.00019726,2]
[346391785,1734935452455,-773.64,0.00019726,2]
[346391786,1734935452465,-552.16,0.00019726,2]
[346391787,1734935452474,-1659.43,0.00019726,2]
[346391788,1734935452484,-622.72061356,0.00019726,2]
[346391789,1734935452493,-500.0,0.00019726,2]
[346391790,1734935452504,-956.6,0.00019726,2]
[346391791,1734935452513,-500.0,0.00019726,2]
[346391792,1734935452523,-671.94,0.00019726,2]
[346391793,1734935452532,-500.0,0.00019726,2]
[346391794,1734935452541,-1018.89,0.00019726,2]
[346391795,1734935452555,-500.0,0.00019726,2]
[346391796,1734935452564,-1384.22,0.00019726,2]
[346391797,1734935452573,-500.0,0.00019726,2]
[346391798,1734935452583,-503.45984173,0.00019726,2]
[346391799,1734935452594,-606.65,0.00019726,2]
[346391800,1734935452603,-500.0,0.00019726,2]
[346391801,1734935452612,-500.0,0.00019726,2]
[346391802,1734935452622,-784.24,0.00019726,2]
[346391803,1734935452632,-500.0,0.00019726,2]
[346391804,1734935452642,-663.59,0.00019726,2]
[346391805,1734935452651,-758.25,0.00019726,2]
[346391806,1734935452660,-1305.24,0.00019726,2]
[346391807,1734935452670,-411.71091642,0.00019726,2]
[346391808,1734935452679,-152.88245044,0.00019732,2]
[346391809,1734935452688,-150.0,0.00019732,2]
[346391810,1734935452697,-150.0,0.00019747,2]
[346391811,1734935452707,-150.0,0.0001977,2]
[346391812,1734935452717,-150.0,0.00019778,2]
[346391813,1734935452726,-150.0,0.00019778,2]
[346391814,1734935452736,-1087.8132122,0.00019789,2]
[346391815,1734935452745,-1899.0,0.00019798,2]
[346391816,1734935452756,-818.0,0.00019798,2]
[346391817,1734935452765,-1256.0,0.00019798,2]
[346391818,1734935452775,-3770.0,0.00019798,2]
[346391819,1734935452784,-924.0,0.00019798,2]
[346391820,1734935452793,-536.0,0.00019798,2]
[346391821,1734935452802,-3682.0,0.00019798,2]
[346391822,1734935452812,-1101.0,0.00019798,2]
[346391823,1734935452821,-1265.0,0.00019798,2]
[346391824,1734935452830,-150.0,0.00019798,2]
[346391825,1734935452839,-2011.0,0.00019798,2]
[346391826,1734935452848,-3887.0,0.00019798,2]
[346391827,1734935452857,-151.75612178,0.00019808,2]
[346391828,1734935452866,-2901.49058151,0.00019809,2]
[346391829,1734935452875,-1500.0,0.00019812,2]
[346391830,1734935452885,-150.0,0.00019821,2]
[346391831,1734935452894,-4098.854,0.00019828,2]
[346391832,1734935452903,-168.576,0.00019828,2]
[346391833,1734935452912,-500.0,0.0001984,2]
[346391834,1734935452921,-423.7072009,0.00019842,2]
[346391835,1734935452930,-150.0,0.00019843,2]
[346391836,1734935452939,-150.0,0.00019861,2]
[346391837,1734935452948,-150.0,0.00019873,2]
[346391838,1734935452957,-150.85780981,0.00019876,2]
[346391839,1734935452966,-10887.723637,0.00019879,2]
[346391840,1734935452975,-150.0,0.00019879,2]
[346391841,1734935452984,-1087.8132122,0.000199,2]
[346391842,1734935452994,-816.35,0.000199,2]
[346391843,1734935453004,-2901.49058151,0.000199,2]
[346391844,1734935453013,-150.0,0.00019956,2]
[346391845,1734935453023,-150.0,0.00019963,2]
[346391846,1734935453032,-150.0,0.00019968,2]
[346391847,1734935453041,-150.0,0.00019978,2]
[346391848,1734935453051,-2808.4806887,0.0001999,2]
[346391849,1734935453060,-100079.42091389,0.00019991,2]
[346391850,1734935453070,-500.0,0.00019995,2]
[346391851,1734935453079,-1303.2508374,0.00019996,2]
[346391852,1734935453088,-1690.1392393,0.00019996,2]
[346391853,1734935453097,-2077.0276412,0.00019996,2]
[346391854,1734935453106,-2463.9160431,0.00019996,2]
[346391855,1734935453116,-2850.804445,0.00019996,2]
[346391856,1734935453125,-3237.6928469,0.00019996,2]
[346391857,1734935453134,-1500.0,0.00019996,2]
[346391858,1734935453143,-2129.2225001,0.00019996,2]
[346391859,1734935453152,-1890.0831261,0.00019996,2]
[346391860,1734935453161,-1650.9437521,0.00019996,2]
[346391861,1734935453171,-1411.8043781,0.00019996,2]
[346391862,1734935453180,-1172.6650041,0.00019996,2]
[346391863,1734935453189,-933.5256301,0.00019996,2]
[346391864,1734935453198,-64880.27407729,0.00019997,2]
[346391865,1734935453487,-263089.64223462,0.00019997,2]
[346391866,1734935453496,-500.0,0.00019998,2]
[346391867,1734935453507,-500.0,0.00019998,2]
[346391868,1734935453516,-500.0,0.00019998,2]
[346391869,1734935453525,-626.6,0.00019998,2]
[346391870,1734935453535,-399.59820415,0.00019999,2]
[346391871,1734935453544,-300.0,0.00019999,2]
[346391872,1734935453557,-666.0,0.00019999,2]
[346391873,1734935453566,-300.0,0.00019999,2]
[346391874,1734935453575,-666.0,0.00019999,2]
[346391875,1734935453585,-305.89578756,0.00019999,2]
[346391876,1734935453595,-264467.70551129,0.00019999,2]
[346391877,1734935453603,-500.0,0.00019999,2]
[346391878,1734935453613,-500.0,0.00019999,2]
[346391879,1734935453622,-500.0,0.00019999,2]
[346391880,1734935453634,-500.0,0.00019999,2]
[346391881,1734935453643,-544.35409016,0.00019999,2]
[346391882,1734935453652,-583.88,0.00019999,2]
[346391883,1734935453661,-466.49,0.00019999,2]
[346391884,1734935453671,-595.19885386,0.00019999,2]
[346391885,1734935453680,-999.64,0.00019999,2]
[346391886,1734935453690,-875.84,0.00019999,2]
[346391887,1734935453698,-2879.09,0.00019999,2]
[346391888,1734935453707,-2169.28,0.00019999,2]
[346391889,1734935453716,-20257.075052,0.00019999,2]
[346391890,1734935453731,-1000.0,0.00019178,2]
[346391891,1734935453740,-25399.99999789,0.00019999,2]
[346391892,1734935453751,-49233.20824946,0.00019999,2]
[346391893,1734935453761,-500.0,0.00019999,2]
[346391894,1734935453770,-500.0,0.00019999,2]